bitfinex/quotes_SOLUSD_20250318
["timestamp","ask_amount","ask_price","bid_price","bid_amount"]
[1742326262433,13.74041732,124.2,124.17,0.03]
[1742326263028,13.74041732,124.19,124.18,20.0]
[1742326263712,13.74041732,124.2,124.18,20.0]
[1742326264407,13.74041732,124.21,124.18,28.0526]
[1742326265448,1.20959553,124.23,124.18,28.0526]
[1742326265737,13.74041732,124.21,124.18,28.0526]
[1742326266048,25.66964886,124.23,124.18,63.53431732]
[1742326266213,39.41006618,124.23,124.18,63.53431732]
[1742326267118,13.74041732,124.22,124.18,49.7939]
[1742326267745,25.66964886,124.23,124.18,49.7939]
[1742326268050,13.74041732,124.22,124.18,49.7939]
[1742326268630,13.74041732,124.21,124.18,49.7939]
[1742326269336,13.74041732,124.21,124.18,29.6619]
[1742326269549,13.74041732,124.19,124.18,20.0]
[1742326269835,13.74041732,124.19,124.18,28.0528]
[1742326270217,13.74041732,124.2,124.18,28.0528]
[1742326271338,0.28432314,124.22,124.18,28.0528]
[1742326271840,13.74041732,124.22,124.18,28.0528]
[1742326272058,13.74041732,124.22,124.18,48.1848]
[1742326272539,32.39006618,124.22,124.18,48.1848]
[1742326273817,13.80341732,124.24,124.19,13.74041732]
[1742326274017,0.063,124.24,124.19,19.94581732]
[1742326274219,13.80341732,124.24,124.19,19.94581732]
[1742326275225,0.063,124.24,124.19,19.94581732]
[1742326275423,13.80341732,124.24,124.19,19.94581732]
[1742326275743,13.74041732,124.23,124.2,8.0515]
[1742326276934,13.38351732,124.23,124.2,8.0515]
[1742326280560,13.38351732,124.23,124.19,28.1812]
[1742326280760,13.74041732,124.21,124.19,8.0521]
[1742326281049,13.74041732,124.21,124.2,20.0]
[1742326281431,32.39006618,124.21,124.17,8.0831]
[1742326281639,13.74041732,124.2,124.19,20.0]
[1742326282750,39.41006618,124.21,124.19,28.0521]
[1742326285961,25.66964886,124.21,124.19,28.0521]
[1742326286137,7.02,124.21,124.19,28.0521]
[1742326287754,7.02,124.21,124.19,41.79251732]
[1742326288055,0.063,124.24,124.2,15.30371732]
[1742326289156,0.063,124.24,124.21,28.178]
[1742326290142,0.063,124.24,124.21,41.91841732]
[1742326295163,0.0001,124.24,124.23,13.74041732]
[1742326295334,0.0001,124.24,124.23,13.88257889]
[1742326295526,0.0001,124.24,124.23,15.43237889]
[1742326295733,0.0001,124.24,124.23,23.48187889]
[1742326297362,0.0001,124.24,124.23,43.48187889]
[1742326297559,0.0001,124.24,124.23,23.48187889]
[1742326298962,0.0001,124.24,124.23,23.33971732]
[1742326304056,0.0001,124.24,124.23,9.5993]
[1742326304441,0.0001,124.24,124.23,43.33971732]
[1742326304869,0.0001,124.24,124.23,23.33971732]
[1742326306593,0.0001,124.24,124.23,43.33971732]
[1742326306772,0.0001,124.24,124.23,23.33971732]
[1742326307064,0.0001,124.24,124.23,43.33971732]
[1742326307240,0.0001,124.24,124.23,23.33971732]
[1742326307437,0.0001,124.24,124.23,23.48187889]
[1742326307865,0.0001,124.24,124.23,29.5993]
[1742326308049,0.0001,124.24,124.23,43.33971732]
[1742326308244,0.0001,124.24,124.23,23.33971732]
[1742326308443,0.0001,124.24,124.23,9.5993]
[1742326308643,0.0001,124.24,124.23,23.33971732]
[1742326308854,0.0001,124.24,124.23,21.78991732]
[1742326309174,0.0001,124.24,124.22,21.79061732]
[1742326309562,0.0001,124.24,124.23,13.74041732]
[1742326310273,0.0001,124.24,124.23,21.78991732]
[1742326310674,0.0001,124.24,124.23,8.0495]
[1742326311165,0.0001,124.24,124.23,28.0495]
[1742326311340,0.0001,124.24,124.23,8.0495]
[1742326312177,0.0001,124.24,124.23,21.78991732]
[1742326313170,0.0001,124.24,124.23,41.93207889]
[1742326313355,0.0001,124.24,124.23,21.93207889]
[1742326313763,0.0001,124.24,124.23,41.93207889]
[1742326314100,0.0001,124.24,124.23,22.07424046]
[1742326314764,0.0001,124.24,124.23,42.07424046]
[1742326315172,0.0001,124.24,124.23,41.00821246]
[1742326315465,0.0001,124.24,124.23,42.59171246]
[1742326317548,0.063,124.3,124.27,0.14216157]
[1742326317772,0.063,124.3,124.28,13.74041732]
[1742326318277,0.063,124.3,124.29,13.74041732]
[1742326319573,0.063,124.3,124.29,21.78601732]
[1742326320290,0.063,124.31,124.3,0.14216157]
[1742326320582,0.063,124.32,124.3,15.08885091]
[1742326320881,0.0001,124.32,124.3,15.08885091]
[1742326321068,0.0001,124.32,124.31,33.74041732]
[1742326321687,0.0001,124.33,124.32,0.14216157]
[1742326321989,0.0001,124.34,124.33,0.14216157]
[1742326322166,0.0001,124.34,124.33,33.88257889]
[1742326323985,0.0001,124.34,124.33,41.92567889]
[1742326325378,0.0001,124.34,124.33,42.06784046]
[1742326326275,0.0001,124.34,124.33,41.92567889]
[1742326326664,0.0001,124.34,124.33,42.06784046]
[1742326331366,0.0001,124.34,124.33,61.00181246]
[1742326332971,0.0001,124.34,124.33,62.20761509]
[1742326334860,0.0001,124.34,124.33,43.27364309]
[1742326338398,0.0001,124.34,124.33,29.53322577]
[1742326338588,0.0001,124.34,124.33,43.27364309]
[1742326342798,0.0001,124.34,124.33,43.33664309]
[1742326343095,0.0001,124.34,124.33,62.27061509]
[1742326345166,0.0001,124.37,124.34,0.14216157]
[1742326345367,0.0001,124.37,124.35,8.20580879]
[1742326345573,0.0001,124.37,124.36,13.74041732]
[1742326347087,0.0001,124.37,124.36,21.78151732]
[1742326347287,0.0001,124.37,124.36,21.92367889]
[1742326349130,0.0001,124.39,124.38,20.0]
[1742326349394,0.0001,124.4,124.39,20.0]
[1742326349975,0.0001,124.4,124.39,33.74041732]
[1742326351198,0.0001,124.4,124.39,41.77961732]
[1742326352285,0.0001,124.41,124.39,42.98509647]
[1742326352496,0.0001,124.41,124.4,13.74041732]
[1742326353400,0.0001,124.41,124.4,21.77891732]
[1742326356633,1.5499,124.45,124.43,20.0]
[1742326356803,1.5499,124.45,124.44,20.0]
[1742326357003,6.5084,124.47,124.43,13.74041732]
[1742326357205,6.5084,124.47,124.43,33.74041732]
[1742326357510,20.24881732,124.47,124.43,20.0]
[1742326357823,20.24881732,124.47,124.46,20.0]
[1742326358013,20.24881732,124.47,124.46,28.0347]
[1742326358197,6.5084,124.47,124.46,28.0347]
[1742326358533,0.03,124.47,124.46,28.0347]
[1742326364035,13.77041732,124.47,124.46,28.0347]
[1742326364402,0.03,124.47,124.46,28.0347]
[1742326367134,13.77041732,124.47,124.46,28.0347]
[1742326367326,0.03,124.47,124.46,28.0347]
[1742326371731,0.0001,124.47,124.46,41.91727889]
[1742326371914,0.0001,124.47,124.46,43.26434532]
[1742326374336,0.0001,124.5,124.47,0.14216157]
[1742326374638,0.0001,124.5,124.49,13.74041732]
[1742326375428,0.0001,124.5,124.48,20.80041732]
[1742326376043,0.0001,124.5,124.49,8.0327]
[1742326377442,0.0001,124.5,124.49,21.91527889]
[1742326380934,0.0001,124.5,124.49,40.99141246]
[1742326381825,0.0001,124.5,124.49,21.91527889]
[1742326382427,0.0001,124.5,124.49,40.99141246]
[1742326382630,0.0001,124.5,124.49,42.65021246]
[1742326383434,0.0001,124.5,124.49,22.05744046]
[1742326386136,0.0001,124.5,124.49,21.91527889]
[1742326390160,0.0001,124.5,124.49,21.97827889]
[1742326402459,0.0001,124.5,124.49,8.0957]
[1742326403172,0.0001,124.5,124.49,0.063]
[1742326403570,13.74051732,124.5,124.49,0.063]
[1742326405069,13.74051732,124.5,124.49,20.063]
[1742326405374,13.74051732,124.5,124.49,0.063]
[1742326405551,13.74051732,124.5,124.49,20.063]
[1742326405754,0.0001,124.5,124.49,20.063]
[1742326407071,0.0001,124.5,124.49,28.0957]
[1742326408062,13.74051732,124.5,124.49,28.0957]
[1742326410586,0.0001,124.5,124.49,28.0957]
[1742326411760,13.74051732,124.5,124.49,28.0957]
[1742326415881,13.74051732,124.5,124.49,20.063]
[1742326416188,13.74051732,124.5,124.49,0.063]
[1742326416774,21.77261732,124.5,124.49,0.063]
[1742326416959,13.74051732,124.5,124.49,0.063]
[1742326429572,32.67448932,124.5,124.49,0.063]
[1742326430886,33.88408485,124.5,124.49,0.063]
[1742326434985,33.88408485,124.5,124.43,7.04]
[1742326434986,18.933972,124.49,124.44,8.036]
[1742326435288,18.933972,124.49,124.47,20.0]
[1742326436491,13.74041732,124.48,124.47,20.0]
[1742326438083,13.74041732,124.48,124.42,20.1558]
[1742326438297,7.28432314,124.47,124.43,8.0366]
[1742326438486,25.933972,124.47,124.43,8.0366]
[1742326439175,13.74041732,124.44,124.43,8.0366]
[1742326439696,13.74041732,124.44,124.43,20.0]
[1742326440496,13.74041732,124.45,124.44,20.0]
[1742326441992,13.74041732,124.45,124.44,28.036]
[1742326443095,13.74041732,124.45,124.43,8.0363]
[1742326443299,13.74041732,124.44,124.43,8.0363]
[1742326443473,13.74041732,124.44,124.43,28.0363]
[1742326443666,13.74041732,124.44,124.43,20.0]
[1742326444168,13.74041732,124.44,124.42,0.063]
[1742326444371,13.74041732,124.43,124.42,8.1002]
[1742326446600,13.74041732,124.43,124.42,0.063]
[1742326451675,13.74041732,124.44,124.42,0.063]
[1742326451882,32.67438932,124.45,124.42,0.063]
[1742326452282,32.39006618,124.45,124.42,0.063]
[1742326452487,13.74041732,124.45,124.42,0.063]
[1742326452901,13.74041732,124.44,124.42,0.063]
[1742326454713,13.74041732,124.43,124.42,0.063]
[1742326457304,32.67438932,124.43,124.42,0.063]
[1742326457510,39.69438932,124.43,124.42,0.063]
[1742326458007,39.41006618,124.43,124.42,0.063]
[1742326458212,20.76041732,124.43,124.42,0.063]
[1742326458519,7.02,124.43,124.42,0.063]
[1742326459692,20.76041732,124.43,124.42,0.063]
[1742326464923,7.02,124.43,124.42,0.063]
[1742326466719,20.76041732,124.43,124.42,0.063]
[1742326469135,39.41006618,124.43,124.42,0.063]
[1742326471028,25.66964886,124.43,124.42,0.063]
[1742326472635,39.41006618,124.43,124.42,0.063]
[1742326477711,39.69438932,124.43,124.42,0.063]
[1742326478130,40.90398485,124.43,124.42,0.063]
[1742326482337,40.61966171,124.43,124.42,0.063]
[1742326482525,40.90398485,124.43,124.42,0.063]
[1742326491723,33.88398485,124.43,124.42,0.063]
[1742326491929,40.88398485,124.43,124.42,0.063]
[1742326496228,39.39006618,124.43,124.42,0.063]
[1742326498946,81.6,124.45,124.42,0.063]
[1742326499653,95.34041732,124.45,124.42,0.063]
[1742326499945,13.74041732,124.44,124.42,0.063]
[1742326500124,13.74041732,124.45,124.42,0.063]
[1742326500329,13.74041732,124.44,124.42,0.063]
[1742326500944,13.74041732,124.45,124.43,8.0366]
[1742326501943,13.74041732,124.44,124.43,8.0366]
[1742326502166,14.02474046,124.44,124.42,8.1001]
[1742326502456,32.67438932,124.43,124.42,0.063]
[1742326504555,13.74041732,124.43,124.42,0.063]
[1742326505442,1.20959553,124.44,124.42,0.063]
[1742326505642,13.74041732,124.43,124.42,0.063]
[1742326506039,32.81655089,124.43,124.42,0.063]
[1742326506244,32.95871246,124.43,124.42,0.063]
[1742326506956,39.54388376,124.43,124.42,0.063]
[1742326510237,121.14388376,124.43,124.42,0.063]
[1742326512044,121.55871246,124.43,124.42,0.063]
[1742326512360,121.27438932,124.43,124.42,0.063]
[1742326513158,121.41655089,124.43,124.42,0.063]
[1742326516363,121.27438932,124.43,124.42,0.063]
[1742326517764,39.67438932,124.43,124.42,0.063]
[1742326517953,32.67438932,124.43,124.42,0.063]
[1742326518158,39.67438932,124.43,124.42,0.063]
[1742326519672,39.81655089,124.43,124.42,0.063]
[1742326519970,39.67438932,124.43,124.42,0.063]
[1742326520469,39.81655089,124.43,124.42,0.063]
[1742326523958,41.02614642,124.43,124.42,0.063]
[1742326525172,41.16830799,124.43,124.42,0.063]
[1742326527274,41.02614642,124.43,124.42,0.063]
[1742326529775,40.88398485,124.43,124.42,0.063]
[1742326530958,32.67438932,124.43,124.42,0.063]
[1742326532683,102.34041732,124.44,124.42,0.063]
[1742326533182,20.74041732,124.44,124.42,0.063]
[1742326534481,25.933972,124.45,124.43,20.0]
[1742326534688,81.6,124.46,124.44,20.0]
[1742326534988,81.6,124.46,124.43,20.0]
[1742326535557,95.34041732,124.46,124.44,20.0]
[1742326536190,95.34041732,124.46,124.45,8.0353]
[1742326536773,81.6,124.46,124.45,8.0353]
[1742326537096,39.53222775,124.48,124.47,20.0]
[1742326537382,40.88398485,124.48,124.47,20.0]
[1742326537565,0.14216157,124.47,124.45,8.0353]
[1742326537770,0.14216157,124.45,124.42,0.063]
[1742326537959,8.20959553,124.44,124.42,0.063]
[1742326538155,13.74041732,124.43,124.42,0.063]
[1742326538361,13.74041732,124.43,124.42,8.1]
[1742326541680,32.67438932,124.43,124.42,8.1]
[1742326541883,33.88398485,124.43,124.42,20.063]
[1742326543390,0.14216157,124.42,124.39,8.102]
[1742326543575,13.74041732,124.4,124.39,8.102]
[1742326544686,13.74041732,124.4,124.39,0.063]
[1742326546987,39.81655089,124.4,124.39,0.063]
[1742326547205,41.02614642,124.4,124.39,0.063]
[1742326547980,39.67438932,124.4,124.39,0.063]
[1742326549792,39.39006618,124.4,124.39,0.063]
[1742326550090,39.67438932,124.4,124.39,0.063]
[1742326553372,40.88398485,124.4,124.39,0.063]
[1742326555564,41.02614642,124.4,124.39,0.063]
[1742326557569,40.88398485,124.4,124.39,0.063]
[1742326557789,39.67438932,124.4,124.39,0.063]
[1742326558489,20.74041732,124.4,124.39,0.063]
[1742326560479,7.0,124.4,124.39,0.063]
[1742326561198,32.53222775,124.42,124.39,0.063]
[1742326561394,18.79181043,124.43,124.41,20.0]
[1742326561601,233.50041732,124.44,124.42,8.0372]
[1742326561893,233.50041732,124.44,124.42,28.0372]
[1742326563474,226.50041732,124.44,124.42,28.0372]
[1742326563676,233.50041732,124.44,124.42,28.0372]
[1742326563979,13.74041732,124.44,124.42,28.0372]
[1742326566111,13.74041732,124.43,124.42,28.0372]
[1742326566407,13.74041732,124.43,124.39,0.063]
[1742326566408,19.07613357,124.42,124.39,20.1604]
[1742326566580,32.67438932,124.4,124.39,0.063]
[1742326566779,32.67438932,124.4,124.39,20.063]
[1742326567305,32.39006618,124.4,124.39,28.1019]
[1742326567508,32.67438932,124.4,124.39,8.1019]
[1742326567692,32.67438932,124.4,124.39,28.1019]
[1742326568201,32.81655089,124.4,124.39,0.063]
[1742326568697,34.02614642,124.4,124.39,0.063]
[1742326570308,34.02614642,124.4,124.36,0.063]
[1742326570309,18.79181043,124.38,124.36,0.063]
[1742326570493,18.933972,124.36,124.35,8.0418]
[1742326570800,32.67438932,124.36,124.35,8.0418]
[1742326571203,13.74041732,124.36,124.35,8.0418]
[1742326571377,18.933972,124.38,124.37,20.0]
[1742326571890,32.67438932,124.38,124.37,20.0]
[1742326573686,32.67438932,124.38,124.37,28.0405]
[1742326576778,81.6,124.39,124.37,28.0405]
[1742326577198,13.74041732,124.42,124.37,94.7683]
[1742326577399,18.64964886,124.42,124.41,20.0]
[1742326577680,266.55161732,124.43,124.42,20.0]
[1742326577881,245.17006618,124.43,124.42,20.0]
[1742326578102,245.45438932,124.43,124.42,20.0]
[1742326579116,245.31222775,124.43,124.42,28.0372]
[1742326579407,245.45438932,124.43,124.42,28.0372]
[1742326584118,32.67438932,124.43,124.42,28.0372]
[1742326585929,13.74041732,124.43,124.42,28.0372]
[1742326586219,39.42006618,124.44,124.42,28.0372]
[1742326586407,13.74041732,124.43,124.42,28.0372]
[1742326588403,0.03,124.44,124.42,28.0372]
[1742326590820,0.03,124.43,124.42,28.0372]
[1742326592424,0.03,124.44,124.42,28.0372]
[1742326595826,0.03,124.44,124.42,41.77761732]
[1742326596033,0.0001,124.44,124.42,41.77761732]
[1742326598327,0.0001,124.44,124.42,28.0372]
[1742326598818,0.0001,124.44,124.42,41.77761732]
[1742326599014,0.0001,124.44,124.42,28.0372]
[1742326600307,0.0001,124.44,124.42,41.77761732]
[1742326602428,0.0001,124.44,124.42,41.84061732]
[1742326604230,0.0001,124.44,124.42,28.1002]
[1742326606226,0.0001,124.44,124.42,41.84061732]
[1742326608429,0.0001,124.44,124.42,28.1002]
[1742326610031,13.74051732,124.44,124.42,28.1002]
[1742326610335,0.14216157,124.4,124.37,0.063]
[1742326610632,32.67438932,124.38,124.37,0.063]
[1742326610924,32.67438932,124.38,124.37,20.063]
[1742326611128,32.67438932,124.38,124.37,0.063]
[1742326611330,32.67438932,124.38,124.37,20.063]
[1742326611532,32.67438932,124.38,124.37,0.063]
[1742326612108,32.67438932,124.38,124.37,20.063]
[1742326612301,32.67438932,124.38,124.37,0.063]
[1742326614410,32.67438932,124.38,124.37,8.1035]
[1742326614616,32.67438932,124.38,124.37,0.063]
[1742326616418,18.933972,124.38,124.37,0.063]
[1742326616617,32.67438932,124.38,124.37,0.063]
[1742326618233,13.74041732,124.38,124.37,0.063]
[1742326619819,13.88257889,124.38,124.37,0.063]
[1742326620138,14.16690203,124.38,124.37,0.063]
[1742326620341,32.95871246,124.38,124.37,0.063]
[1742326620641,0.42648471,124.37,124.35,8.0416]
[1742326620935,0.42648471,124.37,124.35,20.0]
[1742326620936,14.95001285,124.36,124.35,20.0]
[1742326621440,14.95001285,124.36,124.33,20.063]
[1742326621609,20.74041732,124.35,124.33,20.063]
[1742326622022,20.74041732,124.35,124.34,20.0]
[1742326622838,20.74041732,124.35,124.34,8.0424]
[1742326623034,20.74041732,124.35,124.34,28.0424]
[1742326626128,7.0,124.35,124.34,28.0424]
[1742326627647,20.74041732,124.35,124.34,28.0424]
[1742326629539,20.74041732,124.35,124.34,8.0424]
[1742326630153,20.74041732,124.35,124.33,20.063]
[1742326630321,13.74041732,124.34,124.33,20.063]
[1742326632233,13.74041732,124.34,124.33,28.1061]
[1742326638051,14.16690203,124.34,124.33,28.1061]
[1742326639948,8.20959553,124.35,124.33,28.1061]
[1742326640147,13.74041732,124.34,124.33,28.1061]
[1742326641261,7.0,124.35,124.33,28.1061]
[1742326641440,21.95001285,124.35,124.33,28.1061]
[1742326641755,13.74041732,124.34,124.33,28.1061]
[1742326642456,8.20959553,124.35,124.33,28.1061]
[1742326642632,21.95001285,124.35,124.33,28.1061]
[1742326642830,14.16690203,124.34,124.31,0.063]
[1742326643046,13.74041732,124.32,124.31,0.063]
[1742326643532,14.16690203,124.32,124.31,0.063]
[1742326644159,32.95871246,124.32,124.31,0.063]
[1742326645459,14.16690203,124.32,124.31,0.063]
[1742326646737,21.16690203,124.32,124.31,0.063]
[1742326648963,20.74041732,124.32,124.31,0.063]
[1742326650344,7.0,124.32,124.31,0.063]
[1742326650555,13.74041732,124.33,124.31,0.063]
[1742326650770,13.74041732,124.34,124.31,0.063]
[1742326651264,212.9,124.35,124.31,0.063]
[1742326651668,13.74041732,124.34,124.31,0.063]
[1742326653375,13.74041732,124.33,124.32,20.0]
[1742326654441,13.74041732,124.33,124.32,28.0437]
[1742326654843,52.18562292,124.37,124.32,48.153]
[1742326654844,40.0612,124.37,124.32,48.153]
[1742326655046,13.74041732,124.35,124.32,48.153]
[1742326655247,0.31432314,124.37,124.32,48.153]
[1742326655552,13.74041732,124.35,124.32,48.153]
[1742326656365,13.74041732,124.36,124.32,88.3717]
[1742326657867,13.74041732,124.35,124.32,88.3717]
[1742326659557,13.74041732,124.36,124.32,88.3717]
[1742326660670,13.74041732,124.35,124.32,88.3717]
[1742326661071,13.77041732,124.35,124.32,88.3717]
[1742326662162,0.03,124.35,124.32,88.3717]
[1742326662745,13.77041732,124.35,124.32,88.3717]
[1742326666570,13.77041732,124.35,124.32,48.153]
[1742326668686,0.03,124.35,124.32,48.153]
[1742326670760,13.77041732,124.35,124.32,48.153]
[1742326670961,0.03,124.35,124.32,48.153]
[1742326671677,13.77041732,124.35,124.32,48.153]
[1742326673771,0.03,124.35,124.32,48.153]
[1742326675477,13.77041732,124.35,124.32,48.153]
[1742326678285,13.74041732,124.33,124.32,28.0437]
[1742326680979,13.74041732,124.33,124.31,8.107]
[1742326681279,13.74041732,124.32,124.31,8.107]
[1742326682882,13.74041732,124.32,124.31,20.063]
[1742326684980,13.74041732,124.32,124.31,28.1074]
[1742326685654,20.74041732,124.34,124.33,20.0]
[1742326686074,13.74041732,124.34,124.33,20.0]
[1742326687090,13.74041732,124.34,124.33,8.0431]
[1742326688587,13.74041732,124.34,124.33,28.0431]
[1742326689873,40.0612,124.35,124.33,28.0431]
[1742326689874,53.80161732,124.35,124.33,28.0431]
[1742326690784,13.77041732,124.35,124.33,28.0431]
[1742326691993,0.03,124.35,124.33,28.0431]
[1742326693491,13.77041732,124.35,124.33,28.0431]
[1742326696396,0.03,124.35,124.33,28.0431]
[1742326698990,13.77041732,124.35,124.33,28.0431]
[1742326699189,13.74041732,124.34,124.33,28.0431]
[1742326699887,13.74041732,124.34,124.32,8.0437]
[1742326700083,13.74041732,124.33,124.32,8.0437]
[1742326700979,13.74041732,124.33,124.32,20.0]
[1742326702900,13.74041732,124.33,124.32,28.0437]
[1742326704072,13.74041732,124.34,124.32,48.153]
[1742326704271,0.03,124.35,124.32,48.153]
[1742326704488,13.74041732,124.33,124.32,48.153]
[1742326706296,13.74041732,124.34,124.32,48.153]
[1742326706694,13.77041732,124.35,124.32,48.153]
[1742326710601,0.03,124.35,124.32,48.153]
[1742326710902,0.0001,124.35,124.32,61.89341732]
[1742326711281,0.0001,124.35,124.32,63.55501732]
[1742326712416,0.0001,124.35,124.33,13.74041732]
[1742326713095,0.0001,124.35,124.34,33.74041732]
[1742326713413,13.74041732,124.39,124.34,33.74041732]
[1742326713589,13.74041732,124.4,124.35,33.74041732]
[1742326713999,13.74041732,124.4,124.36,28.144]
[1742326715088,13.74041732,124.4,124.35,73.94781732]
[1742326715609,13.74041732,124.39,124.35,60.2074]
[1742326717282,13.74041732,124.39,124.35,88.3537]
[1742326717488,13.74041732,124.39,124.35,102.09411732]
[1742326718109,13.74041732,124.4,124.35,102.09411732]
[1742326718300,13.74041732,124.39,124.35,102.09411732]
[1742326719119,13.74041732,124.37,124.35,48.1463]
[1742326719291,13.74041732,124.36,124.33,28.1501]
[1742326719495,13.74041732,124.34,124.33,28.1501]
[1742326719702,13.74041732,124.34,124.33,8.0431]
[1742326720909,13.74041732,124.34,124.31,20.1733]
[1742326721113,13.74041732,124.32,124.31,20.1733]
[1742326722219,13.74041732,124.32,124.31,0.063]
[1742326733727,69.12857131,124.32,124.31,0.063]
[1742326735120,14.16690203,124.32,124.31,0.063]
[1742326737028,13.74041732,124.32,124.31,8.1074]
[1742326740525,13.74041732,124.32,124.31,0.063]
[1742326742829,13.74041732,124.32,124.31,8.1074]
[1742326744432,13.74041732,124.32,124.31,0.063]
[1742326747536,14.16690203,124.32,124.31,0.063]
[1742326752225,89.12997727,124.32,124.31,0.063]
[1742326752630,137.20487727,124.32,124.31,0.063]
[1742326752832,135.99528174,124.32,124.31,0.063]
[1742326754530,127.95158174,124.32,124.31,0.063]
[1742326755649,72.98991246,124.32,124.31,0.063]
[1742326756741,127.95158174,124.32,124.31,0.063]
[1742326757447,127.80942017,124.32,124.31,0.063]
[1742326757838,135.99528174,124.32,124.31,0.063]
[1742326758221,127.95158174,124.32,124.31,0.063]
[1742326759533,135.99528174,124.32,124.31,0.063]
[1742326759718,135.99528174,124.32,124.29,0.063]
[1742326759922,32.53222775,124.3,124.29,0.063]
[1742326762548,14.16690203,124.29,124.27,20.0]
[1742326762847,7.06,124.28,124.27,28.0467]
[1742326763146,20.80041732,124.28,124.27,28.0467]
[1742326766639,20.80041732,124.28,124.27,28.1097]
[1742326769750,7.06,124.28,124.27,28.1097]
[1742326769954,46.498,124.35,124.27,43.37041732]
[1742326770151,13.74041732,124.34,124.32,20.0]
[1742326770538,7.09,124.35,124.32,20.0]
[1742326770859,13.74041732,124.34,124.32,20.0]
[1742326771985,13.74041732,124.34,124.33,8.0431]
[1742326778056,14.16690203,124.34,124.32,20.0]
[1742326778252,0.28432314,124.32,124.27,0.063]
[1742326778451,13.74041732,124.28,124.27,8.1097]
[1742326778653,13.74041732,124.28,124.27,0.063]
[1742326779263,13.74041732,124.28,124.27,8.1099]
[1742326780139,13.74041732,124.28,124.27,0.063]
[1742326781358,14.16690203,124.28,124.27,0.063]
[1742326781729,41.00501246,124.28,124.27,0.063]
[1742326781933,32.95871246,124.28,124.27,0.063]
[1742326782344,32.81655089,124.28,124.27,0.063]
[1742326782533,32.95871246,124.28,124.27,0.063]
[1742326783151,14.16690203,124.28,124.27,0.063]
[1742326789463,41.00501246,124.28,124.27,0.063]
[1742326790862,32.95871246,124.28,124.27,0.063]
[1742326794862,32.26771246,124.28,124.27,0.063]
[1742326800769,13.19157889,124.28,124.27,0.063]
[1742326801065,0.03,124.29,124.28,20.0]
[1742326801271,13.77041732,124.29,124.28,20.0]
[1742326801460,13.77041732,124.29,124.27,0.063]
[1742326801667,13.74041732,124.28,124.27,20.063]
[1742326802467,13.74041732,124.28,124.27,28.1099]
[1742326802860,13.77041732,124.29,124.27,28.1099]
[1742326806173,13.74041732,124.28,124.27,28.1099]
[1742326806682,114.55871246,124.28,124.27,0.063]
[1742326807368,95.48257889,124.28,124.27,0.063]
[1742326807682,95.76690203,124.28,124.27,0.063]
[1742326810379,122.60501246,124.28,124.27,0.063]
[1742326810679,19.21829514,124.27,124.24,0.063]
[1742326810863,14.16690203,124.25,124.24,0.063]
[1742326815686,13.74041732,124.24,124.23,0.03]
[1742326816569,13.74041732,124.25,124.23,0.03]
[1742326816874,13.74041732,124.24,124.23,0.03]
[1742326818876,14.16690203,124.24,124.23,0.03]
[1742326821373,13.74041732,124.24,124.23,0.03]
[1742326821776,14.16690203,124.24,124.23,0.03]
[1742326827697,14.22990203,124.24,124.23,0.03]
[1742326829092,14.22990203,124.24,124.23,20.03]
[1742326829093,0.063,124.24,124.23,20.03]
[1742326829468,0.063,124.24,124.23,28.0795]
[1742326833778,20.76041732,124.33,124.32,8.0437]
[1742326834893,20.76041732,124.33,124.3,8.045]
[1742326835088,13.74041732,124.32,124.3,8.045]
[1742326836783,20.76041732,124.33,124.3,28.1576]
[1742326836980,20.76041732,124.33,124.32,28.0437]
[1742326838510,13.74041732,124.33,124.32,28.0437]
[1742326841311,13.74041732,124.33,124.32,20.0]